bitfinex/quotes_SOLUSD_20241216
["timestamp","ask_amount","ask_price","bid_price","bid_amount"]
[1734377722355,26.60564466,218.55,218.48,26.60564466]
[1734377722554,26.60564466,218.53,218.46,26.60564466]
[1734377722785,0.68642183,218.52,218.46,26.60564466]
[1734377723268,27.29206649,218.52,218.45,26.60564466]
[1734377723457,96.90564466,218.53,218.46,26.60564466]
[1734377723858,26.60564466,218.52,218.45,26.60564466]
[1734377724160,96.90564466,218.53,218.46,26.60564466]
[1734377724475,26.60564466,218.52,218.45,26.60564466]
[1734377724794,26.60564466,218.52,218.46,23.776884]
[1734377724968,1.5594,218.54,218.43,26.60564466]
[1734377724969,26.60564466,218.5,218.43,26.60564466]
[1734377725168,1.5594,218.54,218.46,26.60564466]
[1734377725169,70.3,218.52,218.46,26.60564466]
[1734377725365,26.60564466,218.52,218.45,26.60564466]
[1734377725855,26.60564466,218.51,218.44,26.60564466]
[1734377726292,26.60564466,218.52,218.45,26.60564466]
[1734377726790,96.90564466,218.53,218.46,50.38252866]
[1734377727085,70.3,218.53,218.47,26.60564466]
[1734377727383,1.5594,218.54,218.5,26.60564466]
[1734377727585,26.60564466,218.56,218.51,23.776884]
[1734377727954,26.60564466,218.56,218.49,23.776884]
[1734377728160,26.60564466,218.54,218.48,23.776884]
[1734377728473,26.60564466,218.56,218.49,26.60564466]
[1734377728688,96.90564466,218.57,218.5,26.60564466]
[1734377728858,70.3,218.57,218.51,23.776884]
[1734377729291,70.3,218.57,218.52,26.60564466]
[1734377729788,70.3,218.61,218.54,26.60564466]
[1734377729988,33.27204466,218.62,218.55,23.776884]
[1734377730288,6.6664,218.62,218.6,26.60564466]
[1734377730487,70.3,218.67,218.6,26.60564466]
[1734377730797,99.68098779,218.67,218.6,26.60564466]
[1734377730995,26.60564466,218.66,218.6,23.776884]
[1734377731159,26.60564466,218.63,218.56,23.776884]
[1734377731360,26.60564466,218.63,218.56,50.38252866]
[1734377731575,26.60564466,218.62,218.56,23.776884]
[1734377731787,26.60564466,218.61,218.56,23.776884]
[1734377731961,26.60564466,218.61,218.55,23.776884]
[1734377732165,26.60564466,218.62,218.55,26.60564466]
[1734377732384,26.60564466,218.61,218.54,23.776884]
[1734377732906,26.60564466,218.61,218.54,50.38252866]
[1734377733064,26.60564466,218.6,218.54,23.776884]
[1734377733430,26.60564466,218.59,218.53,23.776884]
[1734377733591,26.60564466,218.57,218.5,26.60564466]
[1734377733763,26.60564466,218.59,218.52,26.60564466]
[1734377733970,26.60564466,218.6,218.53,26.60564466]
[1734377734896,26.60564466,218.6,218.52,26.60564466]
[1734377735101,26.60564466,218.6,218.53,23.776884]
[1734377735272,26.60564466,218.6,218.53,50.38252866]
[1734377735594,96.90564466,218.6,218.53,23.776884]
[1734377735761,26.60564466,218.55,218.49,20.0]
[1734377735962,26.60564466,218.56,218.51,20.0]
[1734377736192,16.5687003,218.56,218.51,20.0]
[1734377736372,16.5687003,218.57,218.51,20.0]
[1734377736577,16.5687003,218.58,218.52,23.776884]
[1734377736778,16.5687003,218.58,218.51,23.776884]
[1734377737189,16.5687003,218.58,218.51,40.3455843]
[1734377737390,16.5687003,218.57,218.51,23.776884]
[1734377737589,16.5687003,218.57,218.5,23.776884]
[1734377737805,16.5687003,218.56,218.5,23.776884]
[1734377738931,16.5687003,218.53,218.46,16.5687003]
[1734377739084,16.5687003,218.53,218.47,23.776884]
[1734377739408,16.5687003,218.53,218.46,16.5687003]
[1734377739935,16.5687003,218.53,218.45,16.5687003]
[1734377740222,16.5687003,218.56,218.49,16.5687003]
[1734377740393,16.5687003,218.56,218.5,23.776884]
[1734377740592,16.5687003,218.53,218.45,16.5687003]
[1734377740795,16.5687003,218.46,218.35,6.4843]
[1734377740997,16.5687003,218.42,218.35,16.5687003]
[1734377741215,16.5687003,218.4,218.32,16.5687003]
[1734377741723,16.5687003,218.38,218.3,16.5687003]
[1734377741887,70.3,218.45,218.33,16.5687003]
[1734377741888,16.5687003,218.4,218.33,16.5687003]
[1734377742090,26.547951,218.43,218.35,26.547951]
[1734377742516,26.547951,218.42,218.35,26.547951]
[1734377742713,26.547951,218.36,218.19,10.0]
[1734377742926,26.547951,218.37,218.29,26.547951]
[1734377743101,10.0,218.44,218.29,26.547951]
[1734377743102,26.547951,218.36,218.29,26.547951]
[1734377743301,26.547951,218.37,218.29,26.547951]
[1734377743605,26.547951,218.37,218.3,26.547951]
[1734377744410,26.547951,218.34,218.27,26.547951]
[1734377744732,26.547951,218.36,218.3,20.0]
[1734377745030,26.547951,218.38,218.3,46.547951]
[1734377745198,26.547951,218.39,218.32,26.547951]
[1734377745618,26.547951,218.4,218.33,50.324835]
[1734377746197,26.547951,218.41,218.34,26.547951]
[1734377746410,26.547951,218.42,218.35,23.776884]
[1734377746619,26.547951,218.42,218.35,50.324835]
[1734377748328,26.547951,218.42,218.35,23.776884]
[1734377748520,26.547951,218.41,218.35,23.776884]
[1734377749617,96.847951,218.5,218.4,26.547951]
[1734377749797,26.547951,218.49,218.42,26.547951]
[1734377750000,26.547951,218.48,218.41,50.324835]
[1734377750203,26.547951,218.48,218.43,23.776884]
[1734377750631,26.547951,218.5,218.43,26.547951]
[1734377750814,26.547951,218.51,218.44,26.547951]
[1734377751022,103.354951,218.55,218.48,26.547951]
[1734377751717,70.3,218.55,218.49,26.547951]
[1734377751899,70.3,218.55,218.48,46.547951]
[1734377751900,96.847951,218.55,218.48,46.547951]
[1734377752106,96.847951,218.55,218.49,23.776884]
[1734377752803,26.547951,218.52,218.45,26.547951]
[1734377753102,26.547951,218.52,218.46,23.776884]
[1734377753335,26.547951,218.52,218.45,23.776884]
[1734377753630,26.547951,218.53,218.47,23.776884]
[1734377755107,26.547951,218.53,218.46,23.776884]
[1734377755734,26.547951,218.51,218.44,26.547951]
[1734377755981,26.547951,218.51,218.44,50.324835]
[1734377756229,96.847951,218.52,218.45,26.547951]
[1734377756630,26.547951,218.51,218.44,50.324835]
[1734377757433,26.547951,218.52,218.45,26.547951]
[1734377757807,26.547951,218.49,218.41,26.547951]
[1734377758827,26.547951,218.46,218.39,26.547951]
[1734377759033,26.547951,218.46,218.38,26.547951]
[1734377759216,26.547951,218.46,218.35,25.0]
[1734377759217,26.547951,218.45,218.37,26.547951]
[1734377759619,26.547951,218.46,218.38,26.547951]
[1734377759829,70.3,218.47,218.41,26.547951]
[1734377760052,26.547951,218.5,218.43,26.547951]
[1734377760360,70.3,218.49,218.42,26.547951]
[1734377762630,96.847951,218.49,218.42,26.547951]
[1734377763237,26.547951,218.49,218.41,26.547951]
[1734377763648,70.3,218.5,218.43,26.547951]
[1734377763841,70.3,218.49,218.43,26.547951]
[1734377764951,26.547951,218.44,218.37,26.547951]
[1734377765259,1.6119,218.48,218.35,25.0]
[1734377765260,26.547951,218.43,218.35,51.547951]
[1734377765441,26.547951,218.42,218.35,51.547951]
[1734377765640,26.547951,218.41,218.35,25.0]
[1734377766146,26.547951,218.43,218.36,26.547951]
[1734377767470,26.547951,218.39,218.35,25.0]
[1734377768556,6.6472,218.4,218.35,25.0]
[1734377768767,76.9472,218.4,218.35,25.0]
[1734377768938,70.3,218.4,218.35,51.547951]
[1734377769138,70.3,218.4,218.36,26.547951]
[1734377769857,70.3,218.4,218.35,25.0]
[1734377770269,96.847951,218.4,218.35,25.0]
[1734377771137,70.3,218.4,218.35,25.0]
[1734377772235,70.3,218.4,218.38,26.547951]
[1734377772432,76.5321,218.46,218.39,26.547951]
[1734377772740,96.847951,218.46,218.38,26.547951]
[1734377772949,96.847951,218.46,218.36,50.324835]
[1734377772950,26.547951,218.43,218.36,50.324835]
[1734377773658,26.547951,218.44,218.37,26.547951]
[1734377773872,96.847951,218.46,218.39,26.547951]
[1734377774077,70.3,218.46,218.4,26.547951]
[1734377774366,26.547951,218.49,218.42,26.547951]
[1734377775235,26.547951,218.49,218.36,23.776884]
[1734377775236,70.3,218.47,218.38,26.547951]
[1734377775438,70.3,218.47,218.36,23.776884]
[1734377775439,26.547951,218.41,218.35,25.0]
[1734377775682,26.547951,218.4,218.35,25.0]
[1734377775854,26.547951,218.46,218.35,25.0]
[1734377775855,26.547951,218.39,218.35,25.0]
[1734377777739,26.547951,218.37,218.35,25.0]
[1734377778868,26.547951,218.38,218.35,25.0]
[1734377779178,26.547951,218.36,218.35,25.0]
[1734377779879,26.547951,218.37,218.35,25.0]
[1734377780079,70.3,218.38,218.35,25.0]
[1734377781152,96.847951,218.41,218.35,25.0]
[1734377781470,70.3,218.42,218.36,26.547951]
[1734377781642,26.547951,218.44,218.36,26.547951]
[1734377782137,16.58633939,218.44,218.36,40.36322339]
[1734377782349,16.58633939,218.44,218.36,16.58633939]
[1734377782548,16.58633939,218.43,218.36,40.36322339]
[1734377782760,16.58633939,218.44,218.37,16.58633939]
[1734377783145,6.2014,218.45,218.37,16.58633939]
[1734377783146,22.78773939,218.45,218.37,16.58633939]
[1734377783341,16.58633939,218.45,218.38,16.58633939]
[1734377783954,16.58633939,218.45,218.37,16.58633939]
[1734377784160,16.58633939,218.44,218.37,16.58633939]
[1734377784549,16.58633939,218.45,218.37,16.58633939]
[1734377784744,16.58633939,218.44,218.37,16.58633939]
[1734377786045,16.58633939,218.44,218.36,40.36322339]
[1734377786675,16.58633939,218.43,218.35,41.58633939]
[1734377786888,16.58633939,218.4,218.35,25.0]
[1734377787053,16.58633939,218.38,218.35,25.0]
[1734377787374,16.58633939,218.42,218.35,25.0]
[1734377787580,16.58633939,218.42,218.35,41.58633939]
[1734377787790,70.3,218.45,218.35,25.0]
[1734377788087,86.88633939,218.45,218.38,16.58633939]
[1734377788250,16.58633939,218.48,218.41,16.58633939]
[1734377788446,86.88633939,218.49,218.42,16.58633939]
[1734377788775,70.3,218.49,218.43,16.58633939]
[1734377789077,70.3,218.49,218.45,16.58633939]
[1734377789265,70.3,218.54,218.48,16.58633939]
[1734377789444,70.3,218.55,218.49,16.58633939]
[1734377789798,86.88633939,218.56,218.49,16.58633939]
[1734377790075,16.58633939,218.55,218.49,23.776884]
[1734377790641,86.88633939,218.56,218.49,40.36322339]
[1734377791055,16.58633939,218.59,218.52,16.58633939]
[1734377791446,70.3,218.6,218.53,16.58633939]
[1734377791447,16.58633939,218.6,218.53,16.58633939]
[1734377791642,86.88633939,218.6,218.53,16.58633939]
[1734377791895,16.58633939,218.59,218.52,16.58633939]
[1734377792173,86.88633939,218.59,218.52,16.58633939]
[1734377792358,70.3,218.59,218.53,16.58633939]
[1734377792554,86.88633939,218.6,218.53,16.58633939]
[1734377794049,86.88633939,218.59,218.52,16.58633939]
[1734377794374,16.58633939,218.53,218.44,20.0]
[1734377794549,16.58633939,218.51,218.44,36.58633939]
[1734377794750,16.58633939,218.52,218.45,16.58633939]
[1734377794973,16.58633939,218.51,218.43,16.58633939]
[1734377795190,16.58633939,218.57,218.4,16.58633939]
[1734377795191,70.3,218.5,218.4,16.58633939]
[1734377795350,16.58633939,218.46,218.39,16.58633939]
[1734377795987,96.83193535,218.46,218.39,26.53193535]
[1734377797490,70.3,218.46,218.4,26.53193535]
[1734377797972,70.3,218.46,218.39,46.53193535]
[1734377798173,70.3,218.46,218.4,20.0]
[1734377800799,70.3,218.46,218.39,26.53193535]
[1734377804979,6.5853,218.5,218.37,26.53193535]
[1734377804980,70.3,218.44,218.37,26.53193535]
[1734377805183,26.53193535,218.42,218.35,25.0]
[1734377806290,26.53193535,218.4,218.35,25.0]
[1734377807080,26.53193535,218.41,218.35,25.0]
[1734377807282,26.53193535,218.42,218.35,51.53193535]
[1734377807483,96.83193535,218.43,218.35,51.53193535]
[1734377807879,26.53193535,218.42,218.35,51.53193535]
[1734377808499,70.3,218.41,218.35,51.53193535]
[1734377808905,70.3,218.41,218.35,25.0]
[1734377809110,96.83193535,218.41,218.35,25.0]
[1734377809411,96.83193535,218.4,218.35,25.0]
[1734377809713,70.3,218.4,218.35,25.0]
[1734377811595,70.3,218.4,218.35,51.53193535]
[1734377812188,70.3,218.4,218.35,25.0]
[1734377814425,70.3,218.41,218.35,25.0]
[1734377814598,96.83193535,218.41,218.35,25.0]
[1734377814804,26.53193535,218.37,218.35,25.0]
[1734377815119,26.53193535,218.36,218.35,25.0]
[1734377816392,16.59896348,218.36,218.35,25.0]
[1734377816720,16.59896348,218.37,218.35,25.0]
[1734377816924,92.94746348,218.39,218.35,25.0]
[1734377817100,76.3485,218.39,218.35,25.0]
[1734377817301,16.59896348,218.38,218.35,25.0]
[1734377817505,86.89896348,218.39,218.35,25.0]
[1734377817698,16.59896348,218.38,218.35,25.0]
[1734377820000,16.59896348,218.37,218.35,25.0]
[1734377820209,16.59896348,218.36,218.35,25.0]
[1734377821119,70.3,218.38,218.35,25.0]
[1734377821294,70.3,218.38,218.35,41.59896348]
[1734377821493,70.3,218.38,218.36,16.59896348]
[1734377821734,70.3,218.38,218.37,16.59896348]
[1734377821895,16.59896348,218.45,218.37,16.59896348]
[1734377821896,86.89896348,218.45,218.37,16.59896348]
[1734377822095,70.3,218.45,218.39,16.59896348]
[1734377822627,86.89896348,218.45,218.38,16.59896348]
[1734377822799,16.59896348,218.46,218.39,16.59896348]
[1734377822994,86.89896348,218.47,218.39,16.59896348]
[1734377823431,86.89896348,218.47,218.36,23.776884]
[1734377823432,70.3,218.47,218.41,16.59896348]
[1734377823621,86.89896348,218.47,218.39,16.59896348]
[1734377823808,86.89896348,218.47,218.37,16.59896348]
[1734377823809,16.59896348,218.45,218.37,16.59896348]
[1734377824604,16.59896348,218.42,218.35,25.0]
[1734377825511,16.59896348,218.42,218.35,41.59896348]
[1734377826491,70.3,218.41,218.35,25.0]
[1734377828733,70.3,218.41,218.35,41.59896348]
[1734377830004,70.3,218.41,218.36,16.59896348]
[1734377830219,70.3,218.41,218.38,16.59896348]
[1734377830529,70.3,218.41,218.4,16.59896348]
[1734377831239,70.3,218.41,218.4,40.37584748]
[1734377831716,70.3,218.49,218.4,40.37584748]
[1734377831923,70.3,218.49,218.43,16.59896348]
[1734377832308,70.3,218.5,218.45,16.59896348]
[1734377833101,70.3,218.5,218.44,23.776884]
[1734377833102,70.3,218.5,218.44,40.37584748]
[1734377833713,70.3,218.5,218.44,16.59896348]
[1734377833915,86.89896348,218.49,218.42,16.59896348]
[1734377834637,16.59896348,218.45,218.38,16.59896348]
[1734377835053,16.59896348,218.46,218.38,16.59896348]
[1734377835537,16.59896348,218.43,218.36,16.59896348]
[1734377836303,70.3,218.43,218.37,16.59896348]
[1734377837134,70.3,218.43,218.38,16.59896348]
[1734377837944,70.3,218.43,218.36,16.59896348]
[1734377838113,70.3,218.43,218.35,41.59896348]
[1734377838114,86.89896348,218.43,218.35,41.59896348]
[1734377838313,70.3,218.43,218.38,16.59896348]
[1734377838514,70.3,218.43,218.36,16.59896348]
[1734377839343,70.3,218.43,218.37,16.59896348]
[1734377839559,70.3,218.51,218.42,16.59896348]
[1734377839724,86.89896348,218.51,218.43,16.59896348]
[1734377840358,16.59896348,218.5,218.43,16.59896348]
[1734377840519,16.59896348,218.49,218.42,16.59896348]
[1734377841039,16.59896348,218.49,218.41,16.59896348]
[1734377841470,16.59896348,218.49,218.42,16.59896348]
[1734377841756,16.59896348,218.43,218.35,41.59896348]
[1734377841918,16.59896348,218.41,218.35,25.0]
[1734377842761,16.59896348,218.42,218.35,41.59896348]
[1734377842978,16.59896348,218.42,218.35,25.0]
[1734377843249,16.59896348,218.42,218.35,41.59896348]
[1734377843447,16.59896348,218.42,218.35,25.0]
[1734377843651,1.5098,218.45,218.35,25.0]
[1734377843835,16.59896348,218.41,218.35,25.0]
[1734377845460,16.59896348,218.42,218.35,25.0]
[1734377845761,18.10876348,218.45,218.37,16.59896348]
[1734377845926,18.10876348,218.45,218.38,16.59896348]
[1734377845927,16.59896348,218.45,218.38,16.59896348]
[1734377846323,16.59896348,218.47,218.4,16.59896348]
[1734377846634,70.3,218.47,218.4,16.59896348]
[1734377847655,16.59896348,218.46,218.38,16.59896348]
[1734377847861,16.59896348,218.43,218.36,40.37584748]
[1734377848030,16.59896348,218.43,218.36,23.776884]
[1734377848354,16.59896348,218.43,218.35,41.59896348]
[1734377848661,16.59896348,218.43,218.36,16.59896348]
[1734377848950,16.59896348,218.43,218.35,41.59896348]
[1734377849556,16.59896348,218.43,218.36,16.59896348]
[1734377849765,70.3,218.46,218.35,25.0]
[1734377849973,16.59896348,218.42,218.35,41.59896348]
[1734377850759,86.89896348,218.41,218.35,25.0]
[1734377850968,16.59896348,218.38,218.35,25.0]
[1734377852053,16.59896348,218.39,218.35,25.0]
[1734377852247,70.3,218.4,218.35,25.0]
[1734377852447,70.3,218.4,218.35,41.59896348]
[1734377854572,86.89896348,218.4,218.35,25.0]
[1734377854779,16.59896348,218.37,218.35,25.0]
[1734377854951,16.59896348,218.36,218.35,25.0]
[1734377856143,23.08556348,218.37,218.35,25.0]
[1734377856365,16.59896348,218.4,218.35,25.0]
[1734377856702,86.89896348,218.42,218.35,41.59896348]
[1734377857890,70.3,218.42,218.36,16.59896348]
[1734377858094,1.5746,218.45,218.35,25.0]
[1734377858095,70.3,218.44,218.38,16.59896348]
[1734377859256,70.3,218.44,218.39,16.59896348]
[1734377859475,70.3,218.47,218.41,16.59896348]
[1734377859686,70.3,218.48,218.42,16.59896348]
[1734377860396,70.3,218.48,218.43,16.59896348]
[1734377861371,70.3,218.51,218.45,16.59896348]
[1734377862258,86.89896348,218.51,218.44,16.59896348]
[1734377862791,16.59896348,218.51,218.44,40.37584748]
[1734377862975,19.38406181,218.52,218.45,16.59896348]
[1734377863302,71.8746,218.56,218.5,16.59896348]
[1734377863461,16.59896348,218.58,218.5,16.59896348]
[1734377863655,86.89896348,218.58,218.5,16.59896348]
[1734377863985,70.3,218.59,218.52,16.59896348]
[1734377864191,86.89896348,218.59,218.52,16.59896348]
[1734377864358,16.59896348,218.58,218.52,23.776884]
[1734377866292,16.59896348,218.56,218.49,16.59896348]
[1734377866496,16.59896348,218.57,218.5,40.37584748]
[1734377868091,70.3,218.59,218.54,16.59896348]
[1734377868683,70.3,218.59,218.53,16.59896348]
[1734377868894,86.89896348,218.59,218.53,23.776884]
[1734377871160,16.59896348,218.58,218.52,23.776884]
[1734377871385,86.89896348,218.58,218.51,16.59896348]
[1734377871907,86.89896348,218.58,218.52,23.776884]
[1734377871908,70.3,218.58,218.52,23.776884]
[1734377872606,70.3,218.58,218.52,40.37584748]
[1734377872969,86.89896348,218.58,218.52,23.776884]
[1734377873186,16.59896348,218.58,218.51,23.776884]
[1734377873395,86.89896348,218.56,218.48,16.59896348]
[1734377873670,86.89896348,218.56,218.49,23.776884]
[1734377874366,16.59896348,218.52,218.45,16.59896348]
[1734377874795,86.89896348,218.53,218.46,16.59896348]
[1734377875709,70.3,218.53,218.46,16.59896348]
[1734377875871,86.89896348,218.5,218.43,16.59896348]
[1734377876070,86.89896348,218.5,218.42,16.59896348]
[1734377876762,16.59896348,218.49,218.42,16.59896348]
[1734377877167,16.59896348,218.5,218.43,16.59896348]
[1734377877398,16.59896348,218.5,218.36,7.6252]
[1734377877399,86.89896348,218.48,218.4,16.59896348]
[1734377877608,16.59896348,218.47,218.4,16.59896348]
[1734377878198,70.3,218.5,218.44,16.59896348]
[1734377878379,70.3,218.5,218.46,16.59896348]
[1734377878696,16.59896348,218.53,218.37,0.12549]
[1734377878697,70.3,218.52,218.45,16.59896348]
[1734377878871,86.89896348,218.52,218.45,23.776884]
[1734377879389,86.89896348,218.52,218.45,40.37584748]
[1734377879698,70.3,218.52,218.48,23.776884]
[1734377879910,16.59896348,218.55,218.48,23.776884]
[1734377880592,16.59896348,218.55,218.48,40.37584748]
[1734377880975,86.89896348,218.56,218.49,16.59896348]
[1734377881406,16.59896348,218.55,218.48,40.37584748]
[1734377881603,16.59896348,218.55,218.48,23.776884]
[1734377882105,16.59896348,218.55,218.48,40.37584748]
[1734377882322,70.3,218.56,218.49,16.59896348]
[1734377882605,70.3,218.56,218.5,16.59896348]
[1734377882895,70.3,218.56,218.49,16.59896348]
[1734377883195,86.89896348,218.56,218.49,16.59896348]
[1734377884596,86.89896348,218.56,218.48,40.37584748]
[1734377884779,16.59896348,218.54,218.47,16.59896348]
[1734377884978,70.3,218.53,218.46,16.59896348]
[1734377885188,70.3,218.53,218.48,16.59896348]
[1734377885810,70.3,218.53,218.46,16.59896348]
[1734377886010,70.3,218.53,218.47,16.59896348]
[1734377886900,70.3,218.53,218.48,40.37584748]
[1734377887210,70.3,218.53,218.49,23.776884]
[1734377889407,70.3,218.53,218.46,16.59896348]
[1734377889608,16.59896348,218.54,218.47,23.776884]
[1734377891611,16.59896348,218.52,218.46,16.59896348]
[1734377892527,2.75378246,218.57,218.46,40.37584748]
[1734377892528,16.59896348,218.53,218.46,40.37584748]
[1734377893306,16.59896348,218.54,218.46,40.37584748]
[1734377893513,16.59896348,218.53,218.46,23.776884]
[1734377893711,16.59896348,218.53,218.46,40.37584748]
[1734377894515,16.59896348,218.53,218.46,23.776884]
[1734377895237,16.59896348,218.52,218.45,23.776884]
[1734377895402,16.59896348,218.53,218.45,40.37584748]
[1734377895941,70.3,218.54,218.48,16.59896348]
[1734377897302,70.3,218.54,218.45,23.776884]
[1734377897303,70.3,218.54,218.47,23.776884]
[1734377899798,16.59896348,218.53,218.47,23.776884]
[1734377904954,16.59896348,218.51,218.44,16.59896348]
[1734377906948,86.89896348,218.51,218.42,16.59896348]
[1734377907147,86.89896348,218.51,218.43,23.776884]
[1734377907551,16.59896348,218.48,218.4,16.59896348]
[1734377907721,16.59896348,218.45,218.37,22.35910314]
[1734377907920,16.59896348,218.43,218.36,16.59896348]
[1734377908120,16.59896348,218.42,218.35,41.59896348]
[1734377908360,10.61704703,218.41,218.35,25.0]
[1734377908555,10.61704703,218.39,218.35,25.0]
[1734377908852,80.91704703,218.39,218.35,25.0]
[1734377909054,10.61704703,218.38,218.35,25.0]
[1734377909231,10.61704703,218.37,218.35,25.0]
[1734377909440,10.61704703,218.38,218.35,25.0]
[1734377910038,16.59567991,218.38,218.35,25.0]
[1734377910541,16.59567991,218.46,218.35,25.0]
[1734377910542,16.59567991,218.36,218.35,25.0]
[1734377911939,18.11577991,218.38,218.35,25.0]
[1734377912837,16.59567991,218.37,218.35,25.0]
[1734377913033,16.59567991,218.36,218.35,25.0]
[1734377913260,18.11577991,218.38,218.35,25.0]
[1734377913425,16.59567991,218.37,218.35,25.0]
[1734377913837,1.5201,218.38,218.35,25.0]
[1734377913838,16.59567991,218.36,218.35,25.0]
[1734377914037,18.11577991,218.38,218.35,25.0]
[1734377914342,16.59567991,218.37,218.35,25.0]
[1734377915528,19.3086057,218.37,218.35,25.0]
[1734377916553,70.3,218.36,218.35,25.0]
[1734377919739,70.3,218.37,218.35,25.0]
[1734377922629,6.1717,218.39,218.35,25.0]
[1734377923827,22.76737991,218.39,218.35,25.0]
[1734377925160,86.89567991,218.42,218.35,41.59567991]
[1734377925355,72.98745141,218.41,218.36,16.59567991]
[1734377925553,70.3,218.41,218.36,16.59567991]
[1734377925781,86.89567991,218.41,218.35,25.0]
[1734377925948,16.59567991,218.4,218.35,25.0]
[1734377926148,16.59567991,218.39,218.35,25.0]
[1734377926358,16.59567991,218.37,218.35,25.0]
[1734377926560,16.59567991,218.39,218.35,25.0]
[1734377926777,86.89567991,218.41,218.35,25.0]
[1734377926952,86.89567991,218.41,218.35,41.59567991]
[1734377927152,70.3,218.41,218.35,41.59567991]
[1734377927355,70.3,218.41,218.36,16.59567991]
[1734377928364,70.3,218.41,218.35,41.59567991]
[1734377928854,70.3,218.42,218.36,16.59567991]
[1734377929056,86.89567991,218.47,218.4,16.59567991]
[1734377929263,70.3,218.46,218.41,16.59567991]
[1734377929786,70.3,218.46,218.4,16.59567991]
[1734377929959,70.3,218.46,218.4,10.61170449]
[1734377931064,70.3,218.48,218.42,10.61170449]
[1734377931259,10.61170449,218.5,218.43,10.61170449]
[1734377931502,10.61170449,218.5,218.37,0.12549]
[1734377931503,70.3,218.49,218.44,10.61170449]
[1734377931951,70.3,218.49,218.44,16.57538871]
[1734377932772,70.3,218.53,218.47,16.57538871]
[1734377932982,70.3,218.53,218.37,0.81214659]
[1734377932983,16.57538871,218.55,218.49,16.57538871]
[1734377933183,70.3,218.54,218.49,16.57538871]
[1734377933387,16.57538871,218.56,218.49,16.57538871]
[1734377934492,89.62838197,218.57,218.5,16.57538871]
[1734377937279,16.57538871,218.6,218.53,16.57538871]
[1734377937787,16.57538871,218.62,218.55,16.57538871]
[1734377938002,70.3,218.62,218.56,16.57538871]
[1734377939071,70.3,218.63,218.57,16.57538871]
[1734377939392,70.3,218.63,218.56,16.57538871]
[1734377939589,86.87538871,218.63,218.56,16.57538871]
[1734377939790,16.57538871,218.62,218.55,16.57538871]
[1734377939973,16.57538871,218.62,218.56,23.776884]
[1734377940179,70.3,218.63,218.56,23.776884]
[1734377940180,86.87538871,218.63,218.56,40.35227271]
[1734377942075,70.3,218.63,218.58,40.35227271]
[1734377942274,86.87538871,218.67,218.6,16.57538871]
[1734377942480,70.3,218.67,218.61,16.57538871]
[1734377943483,86.87538871,218.67,218.6,16.57538871]
[1734377943742,86.87538871,218.67,218.61,23.776884]
[1734377944005,86.87538871,218.67,218.56,23.776884]
[1734377944006,16.57538871,218.66,218.58,16.57538871]
[1734377944188,70.3,218.68,218.62,16.57538871]
[1734377944904,70.3,218.68,218.64,16.57538871]
[1734377945474,70.3,218.68,218.63,40.35227271]
[1734377945680,70.3,218.68,218.63,23.776884]
[1734377945883,86.87538871,218.68,218.63,23.776884]
[1734377946084,70.3,218.68,218.62,40.35227271]
[1734377946786,86.87538871,218.68,218.62,23.776884]
[1734377947210,16.57538871,218.68,218.6,16.57538871]
[1734377947405,16.57538871,218.68,218.61,23.776884]
[1734377947625,16.57538871,218.66,218.59,16.57538871]
[1734377947839,70.3,218.7,218.55,1.5966]
[1734377947840,16.57538871,218.64,218.57,16.57538871]
[1734377948922,70.3,218.68,218.57,16.57538871]
[1734377948923,16.57538871,218.65,218.57,16.57538871]
[1734377949096,16.57538871,218.65,218.58,23.776884]
[1734377949612,16.57538871,218.64,218.58,23.776884]
[1734377949823,16.57538871,218.65,218.58,16.57538871]
[1734377950005,16.57538871,218.64,218.57,16.57538871]
[1734377950191,16.57538871,218.64,218.58,23.776884]
[1734377950398,16.57538871,218.61,218.54,16.57538871]
[1734377950617,16.57538871,218.63,218.56,16.57538871]
[1734377951020,70.3,218.65,218.59,16.57538871]
[1734377951199,16.57538871,218.67,218.6,16.57538871]